fUST/lending_fUST_20250127
["ID","MTS","AMOUNT","RATE_DAILY","PERIOD"]
[350535576,1737949653746,-276.831616,0.00022551,7]
[350535577,1737949653771,-276.831616,0.00022551,7]
[350535578,1737949653795,-276.831616,0.00022551,7]
[350535579,1737949653819,-276.831616,0.00022551,7]
[350535580,1737949653842,-276.831616,0.00022551,7]
[350535581,1737949653866,-276.831616,0.00022551,7]
[350535582,1737949653890,-276.831616,0.00022551,7]
[350535583,1737949653913,-276.831616,0.00022551,7]
[350535584,1737949653939,-276.831616,0.00022551,7]
[350535585,1737949653966,-276.831616,0.00022551,7]
[350535586,1737949653994,-276.831616,0.00022551,7]
[350535587,1737949654022,-276.831616,0.00022551,7]
[350535588,1737949654048,-276.831616,0.00022551,7]
[350535589,1737949654074,-276.831616,0.00022551,7]
[350535590,1737949654098,-276.831616,0.00022551,7]
[350535591,1737949654124,-276.831616,0.00022551,7]
[350535592,1737949654154,-276.831616,0.00022551,7]
[350535593,1737949654177,-276.831625,0.00022551,7]
[350535594,1737949654202,-186.456036,0.00022551,7]
[350535595,1737949654227,-186.456036,0.00022551,7]
[350535596,1737949654252,-186.456036,0.00022551,7]
[350535597,1737949654276,-186.456036,0.00022551,7]
[350535598,1737949654300,-186.456036,0.00022551,7]
[350535599,1737949654324,-186.456036,0.00022551,7]
[350535600,1737949654348,-186.456036,0.00022551,7]
[350535601,1737949654372,-186.456036,0.00022551,7]
[350535602,1737949654395,-186.456036,0.00022551,7]
[350535603,1737949654419,-186.456036,0.00022551,7]
[350535604,1737949654443,-186.456036,0.00022551,7]
[350535605,1737949654466,-186.456036,0.00022551,7]
[350535606,1737949654493,-186.456036,0.00022551,7]
[350535607,1737949654517,-186.456036,0.00022551,7]
[350535608,1737949654542,-186.456036,0.00022551,7]
[350535609,1737949654566,-186.456036,0.00022551,7]
[350535610,1737949654589,-186.456036,0.00022551,7]
[350535611,1737949654612,-186.456045,0.00022551,7]
[350535612,1737949654636,-351.84648064,0.00022555,3]
[350535613,1737949654658,-500.0,0.00022573,2]
[350535614,1737949654682,-500.0,0.00022573,2]
[350535615,1737949654705,-3734.68490663,0.0002258,60]
[350535616,1737949654731,-500.0,0.00022602,17]
[350535617,1737949654756,-1497.85691961,0.00022606,2]
[350535618,1737949654778,-1497.85691961,0.00022706,2]
[350535619,1737949654802,-351.84648064,0.00022728,3]
[350535620,1737949654823,-500.0,0.00022783,7]
[350535621,1737949654845,-930.13742542,0.00022783,7]
[350535622,1737949654867,-732.0,0.00022783,3]
[350535623,1737949654891,-500.0,0.00022783,7]
[350535624,1737949654914,-705.19006749,0.00022783,7]
[350535625,1737949654936,-5000.0,0.000228,2]
[350535626,1737949654958,-1497.85691961,0.00022806,2]
[350535627,1737949654984,-28572.62287234,0.0002287,2]
[350535628,1737949655150,-531.20556127,0.00019718,2]
[350535629,1737949655186,-151.0,0.00022521,7]
[350535630,1737949655208,-151.0,0.00022521,7]
[350535631,1737949655231,-151.0,0.00022521,7]
[350535632,1737949655252,-151.0,0.00022521,7]
[350535633,1737949655274,-36438.06786479,0.0002287,2]
[350535634,1737949655295,-2992.12828043,0.0002289,7]
[350535635,1737949655316,-351.84648064,0.000229,3]
[350535636,1737949655337,-1497.85691961,0.00022906,2]
[350535637,1737949655358,-13496.40801105,0.00023,30]
[350535638,1737949655378,-270.95804506,0.00023,2]
[350535639,1737949655418,-33338.2121733,0.00023,2]
[350535640,1737949655437,-595.58388717,0.00023,2]
[350535641,1737949655457,-2000.0,0.00023,15]
[350535642,1737949655479,-600.0,0.00023,5]
[350535643,1737949655500,-6951.82964411,0.00023,10]
[350535644,1737949655521,-244.69461269,0.00023,2]
[350535645,1737949655543,-126733.79526554,0.00023,2]
[350535646,1737949655564,-10000.0,0.00023,3]
[350535647,1737949655585,-200.0,0.00023,2]
[350535648,1737949655607,-160.0,0.00023,3]
[350535649,1737949655627,-1497.85691961,0.00023006,2]
[350535650,1737949655648,-500.0,0.00023057,7]
[350535651,1737949655668,-732.0,0.00023057,3]
[350535652,1737949655690,-907.12116419,0.00023057,7]
[350535653,1737949655713,-152.34,0.000231,31]
[350535654,1737949655741,-152.34,0.000231,31]
[350535655,1737949655763,-152.34,0.000231,31]
[350535656,1737949655789,-152.34,0.000231,31]
[350535657,1737949655814,-152.34,0.000231,31]
[350535658,1737949655837,-152.34,0.000231,31]
[350535659,1737949655860,-152.34,0.000231,31]
[350535660,1737949655883,-152.34,0.000231,31]
[350535661,1737949655906,-152.34,0.000231,31]
[350535662,1737949655928,-152.34,0.000231,31]
[350535663,1737949655950,-152.34,0.000231,31]
[350535664,1737949655975,-152.34,0.000231,31]
[350535665,1737949655998,-152.34,0.000231,31]
[350535666,1737949656022,-152.34,0.000231,31]
[350535667,1737949656045,-152.34,0.000231,31]
[350535668,1737949656068,-152.34,0.000231,31]
[350535669,1737949656088,-1497.85691961,0.00023106,2]
[350535670,1737949656108,-1000.0,0.00023121,2]
[350535671,1737949656128,-1000.0,0.00023121,2]
[350535672,1737949656150,-300.0,0.000232,10]
[350535673,1737949656170,-1497.85691961,0.00023206,2]
[350535674,1737949656191,-395.0,0.00023237,2]
[350535675,1737949656212,-500.0,0.0002326,7]
[350535676,1737949656235,-551.88209505,0.0002326,7]
[350535677,1737949656255,-500.0,0.00023287,19]
[350535678,1737949656277,-201.09211673,0.00023288,2]
[350535679,1737949656299,-204.34879609,0.000233,2]
[350535680,1737949656319,-3523.57,0.000233,14]
[350535681,1737949656340,-1497.85691961,0.00023306,2]
[350535682,1737949656362,-15545.0,0.00023328,7]
[350535683,1737949656383,-505.79431717,0.00023331,7]
[350535684,1737949656404,-732.0,0.00023331,3]
[350535685,1737949656425,-1497.85691961,0.00023406,2]
[350535686,1737949656444,-416.87,0.00023435,2]
[350535687,1737949656463,-154.29973665,0.0002345,3]
[350535688,1737949656486,-500.0,0.000235,2]
[350535689,1737949656611,-500.0,0.000235,7]
[350535690,1737949656635,-500.0,0.000235,10]
[350535691,1737949656655,-200.0,0.000235,2]
[350535692,1737949656676,-29999.999999,0.000235,2]
[350535693,1737949656697,-5172.67,0.000235,2]
[350535694,1737949656719,-355.11,0.00023502,120]
[350535695,1737949656747,-500.0,0.00023502,2]
[350535696,1737949656767,-500.0,0.00023502,2]
[350535697,1737949656790,-500.0,0.00023502,2]
[350535698,1737949656812,-500.0,0.00023502,2]
[350535699,1737949656836,-500.0,0.00023502,2]
[350535700,1737949656858,-500.0,0.00023502,2]
[350535701,1737949656878,-500.0,0.00023502,2]
[350535702,1737949656900,-500.0,0.00023502,2]
[350535703,1737949656922,-500.0,0.00023502,2]
[350535704,1737949656943,-500.0,0.00023502,2]
[350535705,1737949656965,-500.0,0.00023502,2]
[350535706,1737949656990,-500.0,0.00023502,2]
[350535707,1737949657012,-500.0,0.00023502,2]
[350535708,1737949657035,-500.0,0.00023502,2]
[350535709,1737949657057,-500.0,0.00023502,2]
[350535710,1737949657080,-500.0,0.00023502,2]
[350535711,1737949657101,-500.0,0.00023502,2]
[350535712,1737949657123,-500.0,0.00023502,2]
[350535713,1737949657144,-500.0,0.00023502,2]
[350535714,1737949657167,-500.0,0.00023502,2]
[350535715,1737949657188,-588.93693455,0.00023502,2]
[350535716,1737949657210,-500.0,0.00023502,2]
[350535717,1737949657235,-500.0,0.00023502,2]
[350535718,1737949657257,-500.0,0.00023502,2]
[350535719,1737949657278,-500.0,0.00023502,2]
[350535720,1737949657300,-500.0,0.00023502,2]
[350535721,1737949657322,-500.0,0.00023502,2]
[350535722,1737949657343,-500.0,0.00023502,2]
[350535723,1737949657365,-500.0,0.00023502,2]
[350535724,1737949657386,-500.0,0.00023502,2]
[350535725,1737949657407,-500.0,0.00023502,2]
[350535726,1737949657427,-500.0,0.00023502,2]
[350535727,1737949657448,-500.0,0.00023502,2]
[350535728,1737949657468,-500.0,0.00023502,2]
[350535729,1737949657493,-500.0,0.00023502,2]
[350535730,1737949657514,-589.49672538,0.00023502,2]
[350535731,1737949657536,-35593.0,0.00023504,30]
[350535732,1737949657556,-1497.85691961,0.00023506,2]
[350535733,1737949657579,-287.273098,0.0002351,2]
[350535734,1737949657599,-500.0,0.00023515,2]
[350535735,1737949657619,-500.0,0.00023515,7]
[350535736,1737949657640,-500.0,0.00023515,10]
[350535737,1737949657661,-732.0,0.00023605,3]
[350535738,1737949657682,-1497.85691961,0.00023606,2]
[350535739,1737949657702,-2269.50760463,0.00023612,2]
[350535740,1737949657724,-1152.0,0.00023617,2]
[350535741,1737949657747,-500.0,0.00023619,2]
[350535742,1737949657767,-500.0,0.00023619,7]
[350535743,1737949657789,-500.0,0.00023619,10]
[350535744,1737949657810,-500.0,0.00023619,30]
[350535745,1737949657831,-200.0,0.000237,2]
[350535746,1737949657852,-1497.85691961,0.00023706,2]
[350535747,1737949657872,-500.0,0.00023715,2]
[350535748,1737949657892,-500.0,0.00023715,7]
[350535749,1737949657914,-500.0,0.00023715,10]
[350535750,1737949657934,-500.0,0.00023715,30]
[350535751,1737949657954,-171.0,0.00023783,2]
[350535752,1737949657976,-6182.58716407,0.00023799,2]
[350535753,1737949657997,-1497.85691961,0.00023806,2]
[350535754,1737949658019,-732.0,0.00023879,3]
[350535755,1737949658040,-1953.26694586,0.000239,2]
[350535756,1737949658060,-1497.85691961,0.00023906,2]
[350535757,1737949658081,-288.01302973,0.00023972,21]
[350535758,1737949658102,-466.244642,0.00023973,2]
[350535759,1737949658122,-150.0,0.00023973,2]
[350535760,1737949658143,-199.0,0.00024,60]
[350535761,1737949658164,-1661.52243998,0.00024,2]
[350535762,1737949658185,-2000.0,0.00024,15]
[350535763,1737949658205,-761.0,0.00024,30]
[350535764,1737949658225,-35149.4375148,0.00024,7]
[350535765,1737949658245,-10000.0,0.00024,2]
[350535766,1737949658265,-3000.0,0.00024,60]
[350535767,1737949658286,-500.0,0.00024,2]
[350535768,1737949658306,-500.0,0.00024,7]
[350535769,1737949658327,-500.0,0.00024,10]
[350535770,1737949658347,-500.0,0.00024,30]
[350535771,1737949658366,-4009.79,0.00024,60]
[350535772,1737949658386,-264.87164818,0.00024,2]
[350535773,1737949658407,-500.0,0.00024,30]
[350535774,1737949658429,-500.0,0.00024,30]
[350535775,1737949658450,-500.0,0.00024,7]
[350535776,1737949658469,-500.0,0.00024,7]
[350535777,1737949658492,-731021.13760503,0.00024,120]
[350535778,1737949658550,-73393.177023,0.00024,120]
[350535779,1737949658614,-140669.870985,0.00024,120]
[350535786,1737949749095,-500.0,0.00016567,2]
[350535787,1737949749121,-372.36877595,0.00016567,2]
[350535788,1737949749143,-500.0,0.00016567,2]
[350535789,1737949749165,-371.82321351,0.00016568,2]
[350535881,1737949831997,-655.77759031,0.00016333,2]
[350535888,1737949832050,-2818.28446965,0.00016333,2]
[350535899,1737949832157,-567.7429389,0.00016333,2]
[350535902,1737949832169,-499.563478,0.00016333,2]
[350536260,1737949838861,-458.63152314,0.00016333,2]
[350536261,1737949838871,-5000.0,0.00016333,2]
[350536262,1737949838881,-5000.0,0.00016333,2]
[350536263,1737949838891,-5000.0,0.00016333,2]
[350536264,1737949838900,-5000.0,0.00016333,2]
[350536265,1737949838909,-128.17678649,0.00016568,2]
[350536266,1737949838918,-150.40081592,0.00016568,2]
[350536267,1737949838927,-508.98678011,0.00016568,2]
[350536268,1737949838936,-1421.37,0.0002,2]
[350536269,1737949838946,-500.0,0.00020164,2]
[350536270,1737949838956,-1200.0,0.00020533,2]
[350536271,1737949838966,-395.0,0.00020775,2]
[350536272,1737949838975,-651.08898196,0.000219,2]
[350536273,1737949838984,-300.0,0.00022199,2]
[350536274,1737949838993,-34001.04713708,0.000222,3]
[350536275,1737949839002,-229.84977069,0.00022356,2]
[350536276,1737949839011,-418.09024108,0.0002242,7]
[350536277,1737949839021,-174.218927,0.0002242,2]
[350536278,1737949839030,-160.0,0.00022502,2]
[350536279,1737949839039,-150.68,0.0002252,2]
[350536280,1737949839050,-150.68,0.0002252,2]
[350536281,1737949839059,-258.35840483,0.0002252,2]
[350536282,1737949839069,-38928.50927739,0.00022521,5]
[350536283,1737949839078,-2956.54884208,0.00022521,5]
[350536284,1737949839095,-151.0,0.00022521,7]
[350536285,1737949839105,-151.0,0.00022521,7]
[350536286,1737949839115,-151.0,0.00022521,7]
[350536287,1737949839125,-151.0,0.00022521,7]
[350536288,1737949839137,-151.0,0.00022521,7]
[350536289,1737949839147,-151.0,0.00022521,7]
[350536290,1737949839156,-151.0,0.00022521,7]
[350536291,1737949839165,-151.0,0.00022521,7]
[350536292,1737949839175,-219.463745,0.00022521,7]
[350536293,1737949839184,-151.0,0.00022521,7]
[350536294,1737949839193,-151.0,0.00022521,7]
[350536295,1737949839202,-151.0,0.00022521,7]
[350536296,1737949839211,-151.0,0.00022521,7]
[350536297,1737949839220,-151.0,0.00022521,7]
[350536298,1737949839229,-244.188909,0.00022521,7]
[350536299,1737949839239,-513.0,0.00022521,3]
[350536300,1737949839248,-19369.70634223,0.00022521,61]
[350536358,1737949841270,-27305.403482,0.00022521,61]
[350536359,1737949841609,-484.985,0.00022521,61]
[350536360,1737949841621,-12573.80655985,0.00022521,61]
[350536361,1737949841646,-8154.797447,0.00022521,61]
[350536362,1737949841658,-5787.66411083,0.00022521,61]
[350536830,1737949848113,-83718.589833,0.00022521,61]
[350536831,1737949848174,-1237.50565458,0.00022521,61]
[350536832,1737949848187,-1950.65004673,0.00022521,61]
[350536833,1737949848206,-423500.0,0.00022521,61]
[350536834,1737949848218,-5632.17068176,0.00022521,61]
[350536835,1737949848921,-135.78619075,0.00022521,61]
[350536836,1737949848937,-160.0,0.00022483,2]
[350536837,1737949848947,-1767719.97685411,0.00022521,61]
[350536838,1737949848958,-491.98348824,0.00022521,61]
[350536839,1737949848969,-506.98592664,0.00022521,61]
[350536840,1737949851066,-16778.023952,0.00022521,61]
[350536841,1737949851077,-648.07051445,0.00022521,61]
[350536842,1737949851088,-8694.78539339,0.00022521,61]
[350536843,1737949851101,-21961.71960257,0.00022521,61]
[350536844,1737949851126,-2326.84,0.00022521,2]
[350536845,1737949851135,-13303.145665,0.00022521,61]
[350536846,1737949851148,-102180.0195176,0.00022521,61]
[350536847,1737949851403,-2302.477802,0.00022521,61]
[350536848,1737949851538,-4498.30480641,0.00022521,61]
[350536849,1737950125425,392.770335,0.00013973,2]
[350536854,1737950577195,233.122321,0.00013699,2]
[350536857,1737950844122,-339.6297755,0.00015269,2]
[350536858,1737950844147,-200.6926653,0.0001541,2]
[350536860,1737950953186,-580.50348807,0.00015256,2]
[350536861,1737950953209,-200.6926653,0.000153,2]
[350536862,1737950953233,-706.8041406,0.0001541,2]
[350536863,1737950953256,-1574.2900146,0.00015454,2]
[350536864,1737950953278,-300.0,0.00015999,2]
[350536865,1737950953298,-13743.78749926,0.00016,2]
[350536866,1737950953319,-500.0,0.00016273,2]
[350536867,1737950953340,-77.20578406,0.00016273,2]
[350536868,1737950959148,-222.50179394,0.00016273,2]
[350536869,1737950959174,-178.65782215,0.00016473,2]
[350536870,1737950959195,-407.22630946,0.00016567,2]
[350536871,1737950959218,-500.0,0.00016572,2]
[350536872,1737950959239,-646.58,0.00016572,2]
[350536873,1737950959263,-500.0,0.00016572,2]
[350536874,1737950959283,-500.0,0.00016572,2]
[350536875,1737950959306,-500.0,0.00016572,2]
[350536876,1737950959328,-500.0,0.00016572,2]
[350536877,1737950959350,-500.0,0.00016572,2]
[350536878,1737950959371,-500.0,0.00016572,2]
[350536879,1737950959392,-524.78,0.00016572,2]
[350536880,1737950959416,-500.0,0.00016572,2]
[350536881,1737950959437,-500.0,0.00016573,2]
[350536882,1737950959458,-500.0,0.00016573,2]
[350536883,1737950959479,-500.0,0.00016573,2]
[350536884,1737950959678,-500.0,0.00016573,2]
[350536885,1737950959700,-500.0,0.00016573,2]
[350536886,1737950959722,-500.0,0.00016573,2]
[350536887,1737950959744,-500.0,0.00016573,2]
[350536888,1737950959768,-504.9,0.00016573,2]
[350536889,1737950959789,-500.0,0.00016573,2]
[350536890,1737950959810,-500.0,0.00016573,2]
[350536891,1737950959831,-500.0,0.00016573,2]
[350536892,1737950959852,-500.0,0.00016573,2]
[350536893,1737950959872,-500.0,0.00016573,2]
[350536894,1737950959896,-500.0,0.00016573,2]
[350536895,1737950959918,-500.0,0.00016573,2]
[350536896,1737950959940,-500.0,0.00016573,2]
[350536897,1737950959965,-500.0,0.00016573,2]
[350536898,1737950959986,-500.0,0.00016573,2]
[350536899,1737950960008,-544.49,0.00016573,2]
[350536900,1737950960030,-580.16,0.00016573,2]
[350536901,1737950960052,-500.0,0.00016573,2]
[350536902,1737950960074,-500.0,0.00016573,2]
[350536903,1737950960097,-500.0,0.00016573,2]
[350536904,1737950960118,-500.0,0.00016574,2]
[350536905,1737950960139,-520.57,0.00016574,2]
[350536906,1737950960160,-504.51329978,0.00016574,2]
[350536907,1737950960186,-507.9967411,0.00016574,2]
[350536908,1737950960208,-500.0,0.00016574,2]
[350536909,1737950960228,-506.8853489,0.00016574,2]
[350536910,1737950960249,-506.93579317,0.00016574,2]
[350536911,1737950960269,-508.19285122,0.00016574,2]
[350536912,1737950960289,-507.80016514,0.00016574,2]
[350536913,1737950960310,-544.01254666,0.00016574,2]
[350536914,1737950960332,-500.0,0.00016574,2]
[350536915,1737950960353,-500.0,0.00016574,2]
[350536916,1737950960374,-570.94405411,0.00016574,2]
[350536917,1737950960395,-500.0,0.00016574,2]
[350536918,1737950960416,-500.0,0.00016574,2]
[350536919,1737950960436,-502.97501015,0.00016574,2]
[350536921,1737950960457,-500.0,0.00016574,2]
[350536922,1737950960477,-500.0,0.00016574,2]
[350536923,1737950960497,-500.0,0.00016574,2]
[350536924,1737950960518,-200.0,0.00016574,2]
[350536925,1737950960540,-500.0,0.00016574,2]
[350536926,1737950960560,-505.30386479,0.00016574,2]
[350536927,1737950960580,-467.74358154,0.00016574,2]
[350536928,1737950960601,-500.0,0.00016574,2]
[350536929,1737950960621,-500.0,0.00016574,2]
[350536930,1737950960641,-523.26795905,0.00016574,2]
[350536931,1737950960662,-500.0,0.00016574,2]
[350536932,1737950960682,-500.0,0.00016574,2]
[350536933,1737950960701,-500.0,0.00016574,2]
[350536934,1737950960721,-500.0,0.00016574,2]
[350536935,1737950960741,-500.0,0.00016574,2]
[350536936,1737950960762,-500.0,0.00016574,2]
[350536937,1737950960783,-500.0,0.00016574,2]
[350536938,1737950960804,-401.64962618,0.00016574,2]
[350536939,1737950960825,-500.0,0.00016574,2]
[350536940,1737950960846,-500.0,0.00016574,2]
[350536941,1737950960866,-500.0,0.00016574,2]
[350536942,1737950960886,-500.0,0.00016574,2]
[350536943,1737950960908,-500.0,0.00016574,2]
[350536944,1737950960928,-533.25553371,0.00016574,2]
[350536945,1737950960948,-500.0,0.00016574,2]
[350536946,1737950960969,-500.0,0.00016574,2]
[350536947,1737950960989,-500.0,0.00016574,2]
[350536948,1737950961009,-500.0,0.00016574,2]
[350536949,1737950961031,-500.0,0.00016574,2]
[350536950,1737950961051,-500.0,0.00016574,2]
[350536951,1737950961071,-500.0,0.00016574,2]
[350536952,1737950961090,-500.0,0.00016574,2]
[350536953,1737950961111,-500.0,0.00016574,2]
[350536954,1737950961132,-500.0,0.00016574,2]
[350536955,1737950961154,-507.72,0.00016574,2]
[350536956,1737950961179,-500.0,0.00016709,2]
[350536957,1737950961201,-500.0,0.00016709,2]
[350536958,1737950961223,-500.0,0.00016709,2]
[350536959,1737950961246,-500.0,0.0001671,2]
[350536960,1737950961268,-263.33,0.0001671,2]
[350536961,1737950961292,-500.0,0.0001671,2]
[350536962,1737950961316,-500.0,0.0001671,2]
[350536963,1737950961338,-500.0,0.0001671,2]
[350536964,1737950961361,-500.0,0.0001671,2]
[350536965,1737950961382,-500.0,0.0001671,2]
[350536966,1737950961405,-606.79,0.0001671,2]
[350536967,1737950961427,-500.0,0.0001671,2]
[350536968,1737950961448,-500.0,0.0001671,2]
[350536969,1737950961469,-500.0,0.0001671,2]
[350536970,1737950961492,-500.0,0.0001671,2]
[350536971,1737950961513,-204.11,0.00016711,2]
[350536972,1737950961534,-190.79,0.00016711,2]
[350536973,1737950961555,-500.0,0.00016711,2]
[350536974,1737950961577,-500.0,0.00016846,2]
[350536975,1737950961600,-500.0,0.00016846,2]
[350536976,1737950961621,-368.46,0.00016846,2]
[350536977,1737950961643,-500.0,0.00016847,2]
[350536978,1737950961668,-500.0,0.00016847,2]
[350536979,1737950961691,-500.0,0.00016847,2]
[350536980,1737950961713,-500.0,0.00016847,2]
[350536981,1737950961736,-500.0,0.00016847,2]
[350536982,1737950961758,-500.0,0.00016848,2]
[350536983,1737950961780,-500.0,0.00016983,2]
[350536984,1737950961802,-164.9984398,0.00016983,2]
[350536985,1737950965891,381.739347,0.00013973,2]
[350537034,1737951031997,-500.0,0.00016572,2]
[350537036,1737951032007,-500.0,0.00016572,2]
[350537038,1737951032016,-500.0,0.00016573,2]
[350537039,1737951032026,-500.0,0.00016709,2]
[350537041,1737951032035,-500.0,0.00016709,2]
[350537043,1737951032043,-500.0,0.0001671,2]
[350537045,1737951032053,-500.0,0.00016846,2]
[350537047,1737951032062,-500.0,0.00016846,2]
[350537049,1737951032071,-370.94,0.00016847,2]
[350537051,1737951032080,-300.0,0.00016982,2]
[350537052,1737951032089,-335.0015602,0.00016983,2]
[350537054,1737951032098,-332.01,0.00016983,2]
[350537056,1737951032107,-500.0,0.00016983,2]
[350537058,1737951032116,-500.0,0.00016983,2]
[350537060,1737951032126,-258.54,0.00016984,2]
[350537062,1737951032135,-500.0,0.00016984,2]
[350537064,1737951032145,-194.1,0.00016984,2]
[350537067,1737951032154,-500.0,0.0001712,2]
[350537069,1737951032163,-500.0,0.0001712,2]
[350537072,1737951032173,-500.0,0.0001712,2]
[350537074,1737951032182,-500.0,0.00017121,2]
[350537077,1737951032192,-500.0,0.00017257,2]
[350537079,1737951032202,-500.0,0.00017257,2]
[350537081,1737951032211,-500.0,0.00017257,2]
[350537083,1737951032221,-500.0,0.00017258,2]
[350537085,1737951032230,-500.0,0.00017394,2]
[350537086,1737951032240,-500.0,0.00017394,2]
[350537088,1737951032249,-320.14,0.00017394,2]
[350537090,1737951032259,-500.0,0.00017395,2]
[350537092,1737951032268,-500.0,0.00017531,2]
[350537094,1737951032278,-500.0,0.00017531,2]
[350537096,1737951032287,-500.0,0.00017532,2]
[350537098,1737951032297,-448.97,0.00017668,2]
[350537100,1737951032306,-500.0,0.00017668,2]
[350537102,1737951032316,-500.0,0.00017669,2]
[350537103,1737951032325,-420.87069333,0.00017805,2]
[350537105,1737951032335,-500.0,0.00017806,2]
[350537107,1737951032345,-300.0,0.000179,7]
[350537109,1737951032355,-500.0,0.00017943,2]
[350537111,1737951032363,-441.66,0.00017943,2]
[350537113,1737951032373,-172.682,0.00018463,2]
[350537115,1737951032381,-420.0,0.00018548,2]
[350537117,1737951032391,-434.0593213,0.000189,2]
[350537119,1737951032400,-300.0,0.000194,8]
[350537120,1737951032410,-1279.23,0.0002,2]
[350537122,1737951032419,-8883.0,0.0002,2]
[350537124,1737951032429,-160.0,0.0002,3]
[350537126,1737951032438,-160.0,0.0002,3]
[350537128,1737951032447,-500.0,0.00020164,2]
[350537130,1737951032457,-587.0,0.00020259,2]
[350537132,1737951032466,-381.739347,0.00020447,2]
[350537133,1737951032475,-395.0,0.00020717,2]
[350537135,1737951032484,-300.0,0.000209,9]
[350537137,1737951032493,-150.0,0.00021,2]
[350537139,1737951032502,-465.27607611,0.00021175,2]
[350537141,1737951032511,-358.3796739,0.00021562,2]
[350537143,1737951032521,-500.0,0.00021599,2]
[350537145,1737951032530,-184.47588443,0.000216,4]
[350537147,1737951032542,-345.29837822,0.000216,4]
[350537187,1737951037853,-8353.22573735,0.000216,4]
[350537189,1737951037863,-189.10861022,0.00021786,2]
[350537190,1737951037872,-152.38,0.000219,31]
[350537192,1737951037882,-152.38,0.000219,31]
[350537194,1737951037891,-152.38,0.000219,31]
[350537196,1737951037900,-152.38,0.000219,31]
[350537198,1737951037909,-152.38,0.000219,31]
[350537200,1737951037918,-152.38,0.000219,31]
[350537202,1737951037928,-489.17832895,0.00022022,2]
[350537203,1737951037938,-823.0,0.00022128,2]
[350537205,1737951037947,-160.0,0.0002227,2]
[350537207,1737951037956,-300.0,0.000224,10]
[350537209,1737951037970,-180.85088338,0.00022514,2]
[350537211,1737951037979,-368.08270416,0.00022515,2]
[350537216,1737951038022,-131.91729584,0.00022515,2]
[350537218,1737951038032,-500.0,0.00022515,2]
[350537220,1737951038041,-500.0,0.00022515,2]
[350537222,1737951038050,-500.0,0.00022515,2]
[350537224,1737951038059,-219.43,0.00022515,2]
[350537226,1737951038069,-8295.91701905,0.00022516,5]
[350537228,1737951038080,-3484.32968129,0.00022516,5]
[350537230,1737951038091,-297.71850871,0.00022516,5]
[350537274,1737951042093,-1191.54031881,0.00022516,5]
[350537306,1737951042909,-1047.71961501,0.00022516,5]
[350537322,1737951448846,233.122321,0.00013699,2]
[350537324,1737951805016,351.742566,0.00013973,2]
[350537333,1737952030142,-206.1609765,0.00015446,2]
[350537334,1737952030164,-118.63402825,0.00015606,2]
[350537335,1737952045097,-131.36597175,0.00015606,2]
[350537336,1737952045119,-300.0,0.00015999,2]
[350537337,1737952045140,-601.38477656,0.00016,2]
[350537343,1737952153106,-300.0,0.00015999,2]
[350537344,1737952153128,-20739.55774314,0.00016,2]
[350537347,1737952171161,-146431.2455124,0.00016,2]
[350537348,1737952171183,-178.65782212,0.00016337,2]